bitfinex/quotes_BTCUSD_20251124
["timestamp","ask_amount","ask_price","bid_price","bid_amount"]
[1763993845613,0.59863614,86233.0,86223.0,0.04356]
[1763993846013,0.59863614,86233.0,86223.0,0.01954]
[1763993846593,0.70157068,86233.0,86223.0,0.01954]
[1763993847232,0.323,86232.0,86223.0,0.01940084]
[1763993850338,0.323,86232.0,86223.0,0.04342084]
[1763993851338,0.323,86232.0,86223.0,0.01940084]
[1763993851537,0.323,86232.0,86224.0,0.02402]
[1763993852878,0.01478,86245.0,86224.0,0.02402]
[1763993852879,0.323,86239.0,86231.0,0.01537]
[1763993853106,0.323,86239.0,86232.0,0.01537]
[1763993853318,0.323,86239.0,86238.0,0.02685]
[1763993853853,0.323,86239.0,86238.0,0.05087]
[1763993854003,0.00025539,86241.0,86238.0,0.05087]
[1763993854210,0.00025539,86241.0,86240.0,0.01537]
[1763993854575,0.00025539,86241.0,86240.0,0.03939]
[1763993857492,0.00025539,86241.0,86240.0,0.04139]
[1763993862992,0.00025539,86241.0,86240.0,0.04875]
[1763993863489,0.00025539,86241.0,86240.0,0.04775]
[1763993864665,0.00025539,86241.0,86240.0,0.04875]
[1763993868448,0.00025539,86241.0,86240.0,0.07194109]
[1763993869061,0.00025539,86241.0,86240.0,0.13404358]
[1763993869219,0.323,86269.0,86243.0,0.01]
[1763993869419,0.323,86269.0,86247.0,0.11956271]
[1763993869863,0.323,86269.0,86247.0,0.14227271]
[1763993870788,0.323,86259.0,86247.0,0.03994]
[1763993870992,0.323,86259.0,86247.0,0.0473]
[1763993871835,0.42733271,86259.0,86247.0,0.0473]
[1763993872044,0.42733271,86259.0,86247.0,0.00936]
[1763993872424,0.42733271,86259.0,86247.0,0.01036]
[1763993872633,0.42733271,86259.0,86247.0,0.00836]
[1763993872969,0.42733271,86259.0,86247.0,0.00736]
[1763993873152,0.42733271,86259.0,86247.0,0.00836]
[1763993873403,0.42733271,86259.0,86247.0,0.00736]
[1763993874060,0.42733271,86259.0,86247.0,0.0453]
[1763993874273,0.323,86256.0,86247.0,0.0453]
[1763993874916,0.00025536,86249.0,86247.0,0.0453]
[1763993877029,0.00025536,86249.0,86238.0,0.01148]
[1763993877030,0.02959717,86248.0,86238.0,0.01148]
[1763993877200,0.33032,86239.0,86234.0,0.00736]
[1763993878110,0.33032,86239.0,86226.0,0.02271]
[1763993878336,1.02457329,86239.0,86226.0,0.02271]
[1763993879275,1.02457329,86239.0,86218.0,0.02271]
[1763993879506,0.323,86232.0,86220.0,0.00736]
[1763993879728,0.323,86229.0,86220.0,0.00736]
[1763993879898,0.323,86226.0,86220.0,0.00736]
[1763993880726,0.323,86226.0,86221.0,0.01204]
[1763993881156,0.323,86229.0,86221.0,0.01204]
[1763993882217,0.323,86229.0,86192.0,0.02271]
[1763993882218,0.323,86220.0,86192.0,0.02271]
[1763993882393,0.323,86220.0,86189.0,0.01204]
[1763993882394,0.323,86200.0,86189.0,0.01204]
[1763993882687,0.01478,86198.0,86189.0,0.01204]
[1763993883088,0.323,86200.0,86189.0,0.01204]
[1763993883543,0.32307241,86200.0,86189.0,0.01204]
[1763993884671,7.241e-05,86200.0,86189.0,0.01204]
[1763993884907,0.323,86198.0,86189.0,0.01204]
[1763993885110,0.323,86198.0,86189.0,0.03475]
[1763993886502,0.33496452,86198.0,86189.0,0.03475]
[1763993888194,0.34974452,86198.0,86189.0,0.01204]
[1763993890361,0.36452452,86198.0,86187.0,0.00736]
[1763993890911,2.36452452,86198.0,86187.0,0.00736]
[1763993891772,2.34974452,86198.0,86187.0,0.00736]
[1763993892426,2.36452452,86198.0,86187.0,0.00736]
[1763993892849,2.34974452,86198.0,86187.0,0.00736]
[1763993893786,2.33496452,86198.0,86188.0,0.02475]
[1763993894036,0.01196452,86198.0,86190.0,0.02475]
[1763993894374,7.241e-05,86200.0,86190.0,0.02475]
[1763993894574,0.323,86198.0,86190.0,0.02475]
[1763993895901,0.323,86198.0,86188.0,0.02475]
[1763993896108,0.35001625,86198.0,86187.0,0.00736]
[1763993896810,0.01223625,86198.0,86197.0,0.04304331]
[1763993897010,7.241e-05,86200.0,86197.0,0.04304331]
[1763993897717,7.241e-05,86200.0,86199.0,0.0164]
[1763993898127,7.241e-05,86200.0,86199.0,0.04115]
[1763993901683,7.241e-05,86200.0,86197.0,0.00189331]
[1763993903933,7.241e-05,86200.0,86199.0,0.001]
[1763993904335,7.241e-05,86200.0,86197.0,0.00189331]
[1763993904534,0.02144196,86199.0,86197.0,0.00189331]
[1763993906128,2.0,86198.0,86197.0,0.00189331]
[1763993906350,2.34444196,86198.0,86197.0,0.00189331]
[1763993907222,2.35922196,86198.0,86197.0,0.00189331]
[1763993907675,2.35922196,86198.0,86197.0,0.04304331]
[1763993907676,0.34444196,86198.0,86197.0,0.04304331]
[1763993908905,0.34444196,86198.0,86197.0,0.04404331]
[1763993909108,0.34444196,86198.0,86197.0,0.04304331]
[1763993909109,0.323,86198.0,86197.0,0.04304331]
[1763993909310,0.34451694,86198.0,86197.0,0.04304331]
[1763993909516,0.34451694,86198.0,86197.0,0.04404331]
[1763993910333,0.34451694,86198.0,86197.0,0.04504331]
[1763993911136,0.34451694,86198.0,86197.0,0.00389331]
[1763993912085,0.34455525,86198.0,86197.0,0.00289331]
[1763993912785,0.34455525,86198.0,86197.0,0.00189331]
[1763993915963,0.02155525,86198.0,86197.0,0.00189331]
[1763993917655,2.03633525,86198.0,86197.0,0.00189331]
[1763993917872,2.05111525,86198.0,86197.0,0.00189331]
[1763993918518,2.03633525,86198.0,86197.0,0.00189331]
[1763993918961,2.03633801,86198.0,86197.0,0.00189331]
[1763993919177,2.02155801,86198.0,86197.0,0.00189331]
[1763993919524,2.35933801,86198.0,86197.0,0.00189331]
[1763993919739,2.37411801,86198.0,86197.0,0.00189331]
[1763993922640,2.51510261,86198.0,86197.0,0.00189331]
[1763993922857,2.51510261,86198.0,86197.0,3.31e-06]
[1763993923075,2.51510261,86198.0,86144.0,0.01203]
[1763993923076,2.0,86186.0,86154.0,0.01203]
[1763993923291,0.323,86163.0,86154.0,0.01203]
[1763993923503,0.02155801,86162.0,86155.0,0.02475]
[1763993923690,0.02155801,86161.0,86155.0,0.02475]
[1763993924601,0.02155801,86161.0,86160.0,0.0005904]
[1763993924839,0.02155801,86161.0,86160.0,0.0396404]
[1763993925266,0.02155801,86161.0,86160.0,0.0164404]
[1763993925490,0.02155801,86161.0,86160.0,0.0005904]
[1763993926618,0.02155801,86161.0,86160.0,0.0402604]
[1763993929392,2.0,86166.0,86160.0,0.0402604]
[1763993929630,0.02147037,86165.0,86160.0,0.0402604]
[1763993929952,0.02147037,86164.0,86160.0,0.0402604]
[1763993930173,0.02147037,86163.0,86160.0,0.0169204]
[1763993930511,2.0,86168.0,86162.0,0.00111869]
[1763993930710,0.323,86165.0,86162.0,0.01633]
[1763993931309,0.323,86165.0,86164.0,0.01633]
[1763993931510,0.323,86165.0,86160.0,0.0005904]
[1763993931713,0.323,86169.0,86160.0,0.0005904]
[1763993931910,0.323,86167.0,86160.0,0.0005904]
[1763993932236,0.323,86165.0,86160.0,0.0005904]
[1763993932442,0.323,86165.0,86161.0,0.02334]
[1763993932657,0.323,86165.0,86164.0,0.02793]
[1763993933116,0.323,86168.0,86164.0,0.02793]
[1763993933322,0.323,86166.0,86164.0,0.02793]
[1763993933523,0.323,86165.0,86164.0,0.02793]
[1763993933724,0.323,86165.0,86164.0,0.05127]
[1763993933927,0.323,86165.0,86164.0,0.05227]
[1763993934123,0.323,86165.0,86164.0,0.05127]
[1763993934358,0.323,86165.0,86164.0,0.02793]
[1763993935198,0.323,86165.0,86164.0,0.05127]
[1763993936574,0.323,86165.0,86164.0,0.05227]
[1763993936916,0.323,86165.0,86164.0,0.05332474]
[1763993937123,0.323,86165.0,86164.0,0.02998474]
[1763993937543,0.00746,86173.0,86164.0,0.02998474]
[1763993937720,2.0,86172.0,86164.0,0.05227]
[1763993938131,2.0,86172.0,86164.0,0.02893]
[1763993938578,2.0,86172.0,86171.0,0.00083094]
[1763993939955,2.01478,86172.0,86171.0,0.00083094]
[1763993940386,2.0,86172.0,86171.0,0.00083094]
[1763993940900,2.01478,86172.0,86171.0,0.00083094]
[1763993941107,2.02956,86172.0,86171.0,0.00083094]
[1763993941470,2.01478,86172.0,86171.0,0.00083094]
[1763993941608,2.0,86172.0,86171.0,0.00083094]
[1763993941943,2.01478,86172.0,86171.0,0.00083094]
[1763993942121,2.02956,86172.0,86171.0,0.00083094]
[1763993942324,2.01478,86172.0,86171.0,0.00083094]
[1763993943070,2.0,86176.0,86171.0,0.04050094]
[1763993943240,2.0,86176.0,86172.0,0.01633]
[1763993943447,2.0,86176.0,86175.0,0.01703307]
[1763993943644,0.11911271,86193.0,86175.0,0.01703307]
[1763993943645,0.00736,86187.0,86175.0,0.01703307]
[1763993943875,0.33032,86189.0,86169.0,0.0116]
[1763993943876,2.0,86186.0,86181.0,0.0116]
[1763993944084,0.323,86187.0,86169.0,0.0116]
[1763993944286,0.69690197,86180.0,86170.0,0.02334]
[1763993944486,0.59256926,86180.0,86179.0,0.01633]
[1763993944696,0.59256926,86180.0,86169.0,0.0116]
[1763993944697,0.01545,86171.0,86160.0,0.0005904]
[1763993944869,0.10433271,86167.0,86160.0,0.0005904]
[1763993945066,2.0,86166.0,86160.0,0.0005904]
[1763993946191,0.59256926,86170.0,86165.0,0.01633]
[1763993946402,0.323,86173.0,86165.0,0.01633]
[1763993946607,2.0,86169.0,86165.0,0.01633]
[1763993947622,2.0,86169.0,86168.0,0.02793]
[1763993948014,2.0,86169.0,86168.0,0.05127]
[1763993948221,0.323,86177.0,86168.0,0.05127]
[1763993948424,0.323,86174.0,86169.0,0.01633]
[1763993948768,0.323,86171.0,86169.0,0.01633]
[1763993948953,2.0,86170.0,86169.0,0.01633]
[1763993949346,2.0,86170.0,86169.0,0.03967]
[1763993949516,2.0,86177.0,86169.0,0.03967]
[1763993949717,2.0,86175.0,86169.0,0.04056488]
[1763993949962,2.0,86173.0,86169.0,0.03967]
[1763993950161,2.0,86177.0,86169.0,0.03967]
[1763993950309,2.0,86175.0,86169.0,0.03967]
[1763993950511,2.0,86173.0,86170.0,0.02334]
[1763993950731,2.0,86171.0,86170.0,0.02334]
[1763993950934,1.39031334,86180.0,86170.0,0.02334]
[1763993950935,2.0,86178.0,86170.0,0.02334]
[1763993951151,2.0,86176.0,86170.0,0.03967]
[1763993951421,2.0,86174.0,86170.0,0.03967]
[1763993951609,2.0,86178.0,86170.0,0.03967]
[1763993951812,2.0,86178.0,86170.0,0.01633]
[1763993952192,0.34455469,86177.0,86170.0,0.01633]
[1763993952398,2.0,86174.0,86170.0,0.01633]
[1763993952599,0.323,86171.0,86170.0,0.01633]
[1763993952958,0.323,86171.0,86170.0,0.03967]
[1763993953767,2.0,86177.0,86170.0,0.04067]
[1763993954196,2.0,86177.0,86176.0,0.01565]
[1763993954197,0.323,86177.0,86176.0,0.01565]
[1763993955472,0.323,86177.0,86176.0,0.03883]
[1763993955874,0.323,86177.0,86176.0,0.0395011]
[1763993956247,0.323,86177.0,86176.0,0.0285711]
[1763993956585,0.323,86177.0,86176.0,0.0129211]
[1763993956786,0.323,86177.0,86176.0,0.0006711]
[1763993956787,2.323,86177.0,86176.0,0.0006711]
[1763993957142,2.323,86177.0,86176.0,0.0016711]
[1763993958420,2.323,86177.0,86176.0,0.0129211]
[1763993958619,2.323,86177.0,86176.0,0.0285711]
[1763993961116,0.323,86177.0,86176.0,0.0517511]
[1763993961764,0.323,86177.0,86176.0,0.0006711]
[1763993962350,2.323,86177.0,86176.0,0.0006711]
[1763993962937,2.33817,86177.0,86176.0,0.0006711]
[1763993963343,2.35362,86177.0,86176.0,0.0006711]
[1763993964548,2.35355724,86177.0,86176.0,0.00051413]
[1763993964752,2.33810724,86177.0,86176.0,0.00051413]
[1763993964975,2.32293724,86177.0,86176.0,0.00051413]
[1763993965151,2.32293724,86177.0,86176.0,0.01616413]
[1763993965557,2.32293724,86177.0,86176.0,0.00051413]
[1763993965753,2.33810724,86177.0,86176.0,0.00051413]
[1763993966660,2.32293724,86177.0,86176.0,0.00051413]
[1763993966869,2.32293724,86177.0,86176.0,0.03934413]
[1763993967216,2.32293724,86177.0,86176.0,0.00051413]
[1763993969585,2.33810724,86177.0,86176.0,0.00051413]
[1763993970506,2.32293724,86177.0,86176.0,0.00051413]
[1763993970762,2.33810724,86177.0,86176.0,0.00051413]
[1763993971204,2.32293724,86177.0,86176.0,0.00051413]
[1763993972466,2.33810724,86177.0,86176.0,0.00051413]
[1763993973218,2.32293724,86177.0,86176.0,0.00051413]
[1763993975320,2.33810724,86177.0,86176.0,0.00051413]
[1763993975621,2.35355724,86177.0,86176.0,0.00051413]
[1763993975834,2.33810724,86177.0,86176.0,0.00051413]
[1763993976203,2.35968741,86177.0,86176.0,0.00051413]
[1763993977097,2.37513741,86177.0,86176.0,0.00051413]
[1763993977725,2.34451741,86177.0,86176.0,0.00051413]
[1763993978835,2.35968741,86177.0,86176.0,0.00051413]
[1763993979620,2.49035872,86177.0,86176.0,0.00051413]
[1763993979826,2.37513741,86177.0,86176.0,0.00051413]
[1763993983387,2.34451741,86177.0,86176.0,0.00051413]
[1763993983589,2.35996741,86177.0,86176.0,0.00051413]
[1763993984056,2.37541741,86177.0,86176.0,0.00051413]
[1763993985841,2.34451741,86177.0,86176.0,0.00051413]
[1763993987129,2.35996741,86177.0,86176.0,0.00051413]
[1763993987341,2.37541741,86177.0,86176.0,0.00051413]
[1763993989675,2.37541741,86177.0,86152.0,0.0116]
[1763993989676,0.323,86174.0,86159.0,0.0068]
[1763993989883,0.323,86166.0,86159.0,0.00690426]
[1763993990113,0.323,86164.0,86159.0,0.00690426]
[1763993990499,0.323,86164.0,86163.0,0.01605]
[1763993990905,0.323,86164.0,86163.0,0.01646556]
[1763993991139,0.323,86170.0,86163.0,0.01646556]
[1763993991355,0.323,86166.0,86163.0,0.01605]
[1763993991571,0.323,86164.0,86159.0,0.00690426]
[1763993991770,0.323,86170.0,86165.0,0.02196]
[1763993991922,0.323,86166.0,86165.0,0.02196]
[1763993992150,2.323,86166.0,86165.0,0.03003]
[1763993992342,2.323,86166.0,86165.0,0.04608]
[1763993992523,0.323,86166.0,86165.0,0.04608]
[1763993992728,0.00039982,86180.0,86165.0,0.04608]
[1763993992936,0.00039982,86180.0,86179.0,0.0224]
[1763993993380,0.00039982,86180.0,86179.0,0.04652]
[1763993994586,0.00039982,86180.0,86179.0,0.04752]
[1763993994821,0.00039982,86180.0,86179.0,0.04852]
[1763993994972,0.00039982,86180.0,86179.0,0.04752]
[1763993996391,0.00039982,86180.0,86179.0,0.04852]
[1763993999482,0.69514481,86190.0,86179.0,0.04852]
[1763993999776,0.69514481,86190.0,86189.0,0.01605]
[1763993999968,0.69514481,86199.0,86180.0,0.02412]
[1763994000183,0.69514481,86190.0,86180.0,0.02412]
[1763994000746,0.69514481,86190.0,86179.0,0.00735]
[1763994000962,3.39068002,86190.0,86189.0,0.001]
[1763994001147,2.0003904,86190.0,86179.0,0.00735]
[1763994001348,2.69514481,86189.0,86179.0,0.00735]
[1763994001551,2.0,86188.0,86180.0,0.001]
[1763994001952,0.02837,86181.0,86180.0,0.001]
[1763994002336,0.05326,86181.0,86180.0,0.002]
[1763994002780,0.05326,86181.0,86180.0,0.001]
[1763994002976,0.05326,86181.0,86170.0,0.00635]
[1763994003152,0.323,86179.0,86170.0,0.00635]
[1763994007985,0.323,86179.0,86178.0,0.00635]
[1763994008198,0.01222,86184.0,86178.0,0.00635]
[1763994008396,0.323,86180.0,86178.0,0.0224]
[1763994008598,2.0,86185.0,86178.0,0.0224]
[1763994010302,2.323,86185.0,86184.0,0.01605]
[1763994010504,0.323,86185.0,86184.0,0.01605]
[1763994010709,0.323,86185.0,86184.0,0.04017]
[1763994011199,0.323,86185.0,86184.0,0.01605]
[1763994011427,0.323,86184.0,86178.0,0.00635]
[1763994012240,0.01222,86183.0,86178.0,0.00635]
[1763994012644,0.02489,86187.0,86178.0,0.00635]
[1763994012645,0.323,86187.0,86182.0,0.01605]
[1763994012954,0.323,86187.0,86183.0,0.01605]
[1763994013747,0.323,86188.0,86178.0,0.00635]
[1763994013954,0.0003904,86190.0,86178.0,0.00635]
[1763994014284,0.323,86188.0,86178.0,0.00635]
[1763994014489,1.01814481,86188.0,86178.0,0.00635]
[1763994014690,0.02318,86187.0,86178.0,0.00635]
[1763994015671,0.0272,86179.0,86176.0,0.00736]
[1763994016103,0.323,86175.0,86168.0,0.00025572]
[1763994016314,0.015,86169.0,86168.0,0.00025572]
[1763994016732,0.03818,86169.0,86168.0,0.00025572]
[1763994017983,0.79947752,86178.0,86168.0,0.01690572]
[1763994017984,0.323,86175.0,86168.0,0.01690572]
[1763994018095,0.323,86173.0,86168.0,0.01690572]
[1763994018769,0.323,86173.0,86168.0,0.00025572]
[1763994020388,0.015,86169.0,86168.0,0.00025572]
[1763994020793,0.03818,86169.0,86168.0,0.00025572]
[1763994020996,0.015,86169.0,86168.0,0.00025572]
[1763994021420,0.03653958,86169.0,86168.0,0.00025572]
[1763994022071,0.02153958,86169.0,86168.0,0.00025572]
[1763994022465,2.0,86172.0,86168.0,0.00025572]
[1763994022687,0.02153767,86171.0,86169.0,0.02362]
[1763994022890,0.02153767,86170.0,86169.0,0.02362]
[1763994023099,0.02153767,86170.0,86169.0,0.04027]
[1763994023288,0.02138061,86170.0,86169.0,0.03027]
[1763994023513,0.323,86175.0,86169.0,0.01665]
[1763994023693,2.0,86172.0,86169.0,0.01665]
[1763994026353,2.0,86172.0,86168.0,0.00025572]
[1763994026913,0.323,86176.0,86171.0,0.01541]
[1763994028077,0.323,86177.0,86175.0,0.01541]
[1763994028263,0.323,86177.0,86172.0,0.01541]
[1763994028501,0.323,86177.0,86176.0,0.01541]
[1763994029130,0.323,86184.0,86176.0,0.03082]
[1763994029747,0.323,86184.0,86176.0,0.01541]
[1763994031512,0.323,86180.0,86168.0,0.00025572]
[1763994031876,0.323,86177.0,86168.0,0.00025572]
[1763994033810,0.323,86173.0,86168.0,0.00025572]
[1763994033986,2.0,86172.0,86168.0,0.00025572]
[1763994034171,0.02318,86173.0,86168.0,0.00025572]
[1763994034370,0.323,86171.0,86168.0,0.00025572]
[1763994034710,0.323,86175.0,86169.0,0.0027]
[1763994034922,0.323,86171.0,86169.0,0.00248018]
[1763994035125,2.323,86170.0,86169.0,0.00248018]
[1763994035323,2.34455952,86170.0,86169.0,0.00248018]
[1763994036875,2.34455952,86170.0,86169.0,0.00348018]
[1763994037147,2.34455952,86170.0,86169.0,0.00248018]
[1763994037515,2.34455952,86170.0,86169.0,0.00348018]
[1763994037715,2.34455952,86170.0,86169.0,0.00448018]
[1763994040261,0.34455952,86170.0,86169.0,0.01967018]
[1763994041663,0.323,86169.0,86168.0,0.00025572]
[1763994041831,0.34455952,86169.0,86168.0,0.00025572]
[1763994042849,0.02155952,86169.0,86168.0,0.00025572]
[1763994043251,0.02155952,86174.0,86168.0,0.00125572]
[1763994043455,0.02155952,86173.0,86168.0,0.00125572]
[1763994043661,0.02155952,86172.0,86168.0,0.00225572]
[1763994043872,0.02155952,86171.0,86168.0,0.00225572]
[1763994044073,0.02155952,86170.0,86168.0,0.00125572]
[1763994044343,0.02157944,86169.0,86168.0,0.00025572]
[1763994044544,0.02157944,86169.0,86168.0,0.00125572]
[1763994044988,0.02157944,86169.0,86168.0,0.00025572]
[1763994045731,2.38432944,86169.0,86168.0,0.00025572]
[1763994046577,2.38432944,86169.0,86168.0,0.00125572]
[1763994047120,2.34457944,86169.0,86168.0,0.00125572]
[1763994047294,2.34457944,86169.0,86168.0,0.00025572]
[1763994047511,0.34457944,86169.0,86168.0,0.00025572]
[1763994049234,2.38376944,86169.0,86168.0,0.00025572]
[1763994052338,2.34457944,86169.0,86168.0,0.00025572]
[1763994054897,2.0,86173.0,86168.0,0.00025572]
[1763994055123,0.6952455,86180.0,86169.0,0.01105]
[1763994055331,0.6952455,86180.0,86179.0,0.00591]
[1763994055537,2.0,86188.0,86179.0,0.00591]
[1763994055945,0.02277,86187.0,86179.0,0.00591]
[1763994056165,0.02808,86180.0,86174.0,0.00591]
[1763994059260,0.02277,86179.0,86168.0,0.00025572]
[1763994059670,0.02808,86180.0,86168.0,0.00025572]
[1763994059899,0.01166,86180.0,86168.0,0.00025572]
[1763994060102,0.323,86177.0,86168.0,0.00025572]
[1763994060303,0.323,86175.0,86168.0,0.00025572]
[1763994060477,0.323,86171.0,86168.0,0.00025572]
[1763994060886,0.01642,86169.0,86168.0,0.00025572]
[1763994061091,0.323,86171.0,86168.0,0.00025572]
[1763994061309,0.01642,86169.0,86168.0,0.00025572]
[1763994062702,0.01642,86169.0,86168.0,0.00125572]
[1763994063084,2.03919,86169.0,86168.0,0.00125572]
[1763994063209,2.36219,86169.0,86168.0,0.00125572]
[1763994063404,2.36219,86169.0,86168.0,0.00225572]
[1763994064042,2.36219,86169.0,86168.0,0.00125572]
[1763994064652,2.36219,86169.0,86168.0,0.00025572]
[1763994064870,2.323,86169.0,86168.0,0.00025572]
[1763994066371,2.36219,86169.0,86168.0,0.00025572]
[1763994066582,2.33942,86169.0,86168.0,0.00025572]
[1763994066782,2.33942,86169.0,86168.0,0.00125572]
[1763994066783,2.35486936,86169.0,86168.0,0.00125572]
[1763994066984,2.33844936,86169.0,86168.0,0.00125572]
[1763994068684,2.37763936,86169.0,86168.0,0.00125572]
[1763994069082,2.14581767,86169.0,86168.0,0.00125572]
[1763994069986,2.14581767,86169.0,86168.0,0.00025572]
[1763994074827,2.10662767,86169.0,86168.0,0.00025572]
[1763994075287,2.14577767,86169.0,86168.0,0.00025572]
[1763994078237,2.26099898,86169.0,86168.0,0.00025572]
[1763994078449,2.14577767,86169.0,86168.0,0.00025572]
[1763994078658,2.14577767,86169.0,86150.0,0.0002]
[1763994078659,0.323,86159.0,86150.0,0.0002]
[1763994078840,2.21588569,86151.0,86150.0,0.0002]
[1763994079013,2.23747038,86151.0,86150.0,0.0002]
[1763994079191,2.26048038,86151.0,86150.0,0.0002]
[1763994079393,2.26513565,86151.0,86150.0,0.0002]
[1763994079801,2.26518545,86151.0,86150.0,0.0002]
[1763994080217,2.26618545,86151.0,86150.0,0.0002]
[1763994080617,2.26618545,86151.0,86120.0,0.0002]
[1763994080618,0.323,86150.0,86120.0,0.0002]
[1763994080980,2.20551569,86131.0,86120.0,0.0002]
[1763994081133,2.22710038,86131.0,86120.0,0.0002]
[1763994081349,2.14577767,86131.0,86121.0,0.00616]
[1763994081523,2.16201243,86131.0,86121.0,0.00616]
[1763994081878,2.13434705,86131.0,86121.0,0.00616]
[1763994082231,2.11276236,86131.0,86121.0,0.00616]
[1763994082775,2.13577236,86131.0,86121.0,0.00616]
[1763994083120,2.13577236,86131.0,86130.0,0.0012]
[1763994083734,2.09662236,86131.0,86130.0,0.0012]
[1763994084137,2.13577236,86131.0,86130.0,0.0012]
[1763994085146,2.11276236,86131.0,86130.0,0.0012]
[1763994085352,2.13577236,86131.0,86130.0,0.0012]
[1763994085556,2.13577236,86131.0,86130.0,0.00241523]
[1763994086094,2.15723848,86131.0,86130.0,0.00241523]
[1763994087043,2.15723848,86131.0,86130.0,0.00141523]
[1763994088991,2.1065091,86131.0,86130.0,0.00141523]
[1763994089191,1.7835091,86131.0,86130.0,0.00141523]
[1763994089389,0.323,86136.0,86130.0,0.00141523]
[1763994089720,1.76204298,86133.0,86131.0,0.00616]
[1763994090571,2.08504298,86133.0,86132.0,0.01131]
[1763994090781,2.10649892,86133.0,86132.0,0.01131]
[1763994091000,0.01196306,86136.0,86132.0,0.01131]
[1763994091226,0.6952455,86140.0,86135.0,0.01131]
[1763994091428,2.0,86149.0,86139.0,0.01131]
[1763994091661,2.0,86147.0,86139.0,0.01131]
[1763994091878,0.6952455,86150.0,86140.0,0.01131]
[1763994091879,0.323,86149.0,86140.0,0.01131]
[1763994092086,0.6952455,86150.0,86140.0,0.01131]
[1763994092292,0.6952455,86150.0,86149.0,0.01645]
[1763994092504,0.323,86150.0,86149.0,0.01645]
[1763994093066,4.98e-05,86151.0,86149.0,0.01645]
[1763994093413,4.98e-05,86151.0,86150.0,0.01131]
[1763994094374,4.98e-05,86151.0,86149.0,0.00514]
[1763994094576,4.98e-05,86151.0,86149.0,0.00614]
[1763994095206,4.98e-05,86151.0,86149.0,0.00514]
[1763994095412,4.98e-05,86151.0,86150.0,0.001]
[1763994095757,4.98e-05,86151.0,86150.0,0.0015755]
[1763994095959,2.3621998,86151.0,86150.0,0.0015755]
[1763994096163,0.3230498,86151.0,86150.0,0.0015755]
[1763994096370,0.3230498,86151.0,86150.0,0.0241955]
[1763994096591,4.98e-05,86151.0,86150.0,0.0251955]
[1763994097000,4.98e-05,86151.0,86150.0,0.0241955]
[1763994097775,4.98e-05,86151.0,86150.0,0.0231955]
[1763994097973,4.98e-05,86151.0,86150.0,0.0241955]
[1763994098272,4.98e-05,86151.0,86150.0,0.0251955]
[1763994098437,4.98e-05,86151.0,86150.0,0.0231955]
[1763994098634,4.98e-05,86151.0,86150.0,0.0251955]
[1763994098882,4.98e-05,86151.0,86150.0,0.0261955]
[1763994101175,4.98e-05,86151.0,86150.0,0.0148855]
[1763994101376,4.98e-05,86151.0,86150.0,0.0035755]
[1763994101956,4.98e-05,86151.0,86150.0,0.0005755]
[1763994102343,4.98e-05,86151.0,86150.0,0.0015755]
[1763994102966,4.98e-05,86151.0,86150.0,0.0128855]
[1763994103752,4.98e-05,86151.0,86150.0,0.0138855]
[1763994104349,4.98e-05,86151.0,86150.0,0.0025755]
[1763994105801,4.98e-05,86151.0,86150.0,0.0015755]
[1763994106664,4.98e-05,86151.0,86150.0,0.0025755]
[1763994107294,4.98e-05,86151.0,86150.0,0.0138855]
[1763994108121,4.98e-05,86151.0,86150.0,0.0251955]
[1763994108951,4.98e-05,86151.0,86150.0,0.0138855]
[1763994109364,4.98e-05,86151.0,86150.0,0.0025755]
[1763994109569,2.3610898,86151.0,86150.0,0.0025755]
[1763994109777,2.3825677,86151.0,86150.0,0.0025755]
[1763994110187,2.3825677,86151.0,86150.0,0.0015755]
[1763994110671,2.3825677,86151.0,86150.0,0.0005755]
[1763994111050,2.3825677,86151.0,86150.0,0.0015755]
[1763994116008,2.3899277,86151.0,86150.0,0.0015755]
[1763994116726,2.3899277,86151.0,86150.0,0.0005755]
[1763994117951,2.3972877,86151.0,86150.0,0.0005755]
[1763994121224,2.3899277,86151.0,86150.0,0.0005755]
[1763994124788,2.3671977,86151.0,86150.0,0.0005755]
[1763994127869,0.3445277,86151.0,86150.0,0.0005755]
[1763994128524,0.0214779,86151.0,86150.0,0.0005755]
[1763994128965,0.01202,86156.0,86150.0,0.0005755]
[1763994129181,2.0,86154.0,86150.0,0.00010426]
[1763994129421,2.0,86152.0,86150.0,0.00010426]
[1763994129637,0.01202,86156.0,86150.0,0.00010426]
[1763994129638,2.0,86155.0,86150.0,0.00010426]
[1763994129842,0.02154443,86154.0,86150.0,0.00010426]
[1763994130046,0.02154443,86153.0,86150.0,0.00010426]
[1763994130270,0.02154443,86152.0,86150.0,0.00010426]
[1763994130479,0.02154443,86151.0,86150.0,0.00010426]
[1763994130708,0.323,86155.0,86151.0,0.01131]
[1763994130916,0.323,86152.0,86151.0,0.01131]
[1763994131115,0.323,86152.0,86150.0,0.00010426]
[1763994131116,0.35985705,86152.0,86150.0,0.00010426]
[1763994131448,0.323,86152.0,86150.0,0.00010426]
[1763994132060,0.03475,86159.0,86150.0,0.00010426]
[1763994132061,0.323,86157.0,86150.0,0.00010426]
[1763994132261,0.323,86154.0,86150.0,0.00010426]
[1763994132445,0.02154947,86153.0,86150.0,0.00010426]
[1763994133236,0.02733,86151.0,86150.0,0.00010426]
[1763994133442,0.02154947,86151.0,86150.0,0.00010426]
[1763994134136,0.03343947,86151.0,86150.0,0.00010426]
[1763994134938,0.02154947,86151.0,86150.0,0.00010426]
[1763994135196,0.33502,86159.0,86150.0,0.00010426]
[1763994135564,0.323,86155.0,86150.0,0.00067976]
[1763994135771,0.323,86155.0,86150.0,0.01141426]
[1763994135941,0.323,86155.0,86154.0,0.00616]
[1763994136086,0.34455568,86155.0,86154.0,0.00616]
[1763994136290,0.38312568,86155.0,86150.0,0.00010426]
[1763994136508,0.02737,86151.0,86150.0,0.00010426]
[1763994136714,0.04892568,86151.0,86150.0,0.00010426]
[1763994136930,0.07201568,86151.0,86150.0,0.00010426]
[1763994138252,0.04892568,86151.0,86150.0,0.00010426]
[1763994138444,0.07201568,86151.0,86150.0,0.00010426]